bitfinex/quotes_SOLUSD_20250418
["timestamp","ask_amount","ask_price","bid_price","bid_amount"]
[1744969288237,7.41674701,134.83,134.82,6.08458721]
[1744969291370,7.41674701,134.83,134.79,20.0]
[1744969291544,7.41674701,134.83,134.79,26.08458721]
[1744969291743,7.41674701,134.83,134.8,6.08458721]
[1744969292264,7.41674701,134.83,134.81,6.08458721]
[1744969295646,7.41674701,134.83,134.8,6.08458721]
[1744969297068,7.41674701,134.83,134.81,6.08458721]
[1744969297363,7.41674701,134.83,134.8,6.08458721]
[1744969298356,7.41674701,134.83,134.8,20.96458721]
[1744969299064,7.41674701,134.83,134.81,6.08458721]
[1744969302964,7.41674701,134.83,134.8,20.96458721]
[1744969303753,7.41674701,134.83,134.81,6.08458721]
[1744969307862,7.41674701,134.83,134.82,6.08458721]
[1744969308358,1.1810808,134.84,134.82,6.08458721]
[1744969308564,1.1810808,134.84,134.83,6.08458721]
[1744969308565,8.59753987,134.84,134.83,6.08458721]
[1744969314945,8.59753987,134.84,134.82,6.08458721]
[1744969316775,8.59753987,134.84,134.81,6.08458721]
[1744969317655,8.59753987,134.84,134.8,20.96458721]
[1744969318170,27.1380323,134.84,134.8,20.96458721]
[1744969319166,33.22261951,134.84,134.8,14.88]
[1744969319872,27.1380323,134.84,134.8,20.96458721]
[1744969320472,27.1380323,134.84,134.8,14.88]
[1744969320769,27.1380323,134.84,134.8,20.96458721]
[1744969321168,27.1380323,134.84,134.82,6.08458721]
[1744969321360,8.59753987,134.84,134.83,6.08458721]
[1744969322881,1.1810808,134.84,134.83,6.08458721]
[1744969327283,8.59727777,134.84,134.83,6.08458721]
[1744969327658,8.59727777,134.84,134.79,20.0]
[1744969327858,14.68186498,134.84,134.8,14.74]
[1744969328158,33.22235741,134.84,134.8,14.74]
[1744969328876,6.08458721,134.83,134.8,14.74]
[1744969329257,7.41729713,134.82,134.8,14.74]
[1744969330173,7.41729713,134.82,134.8,20.82458721]
[1744969330558,7.41729713,134.82,134.81,6.08458721]
[1744969331167,7.41729713,134.82,134.8,20.82458721]
[1744969331488,25.95861454,134.83,134.8,20.82458721]
[1744969334394,25.95861454,134.83,134.8,14.74]
[1744969336201,25.95861454,134.83,134.79,6.08458721]
[1744969336387,32.04320175,134.83,134.78,20.84458721]
[1744969337084,32.04320175,134.83,134.78,14.76]
[1744969337392,32.04320175,134.83,134.78,20.84458721]
[1744969337976,25.96246569,134.81,134.78,14.76]
[1744969338180,25.96246569,134.81,134.78,20.84458721]
[1744969339872,18.54461835,134.81,134.78,20.84458721]
[1744969340277,18.54461835,134.81,134.79,6.08458721]
[1744969343097,18.54461835,134.81,134.78,14.76]
[1744969343098,18.54461835,134.81,134.78,20.84458721]
[1744969345594,18.54461835,134.81,134.78,14.76]
[1744969345773,18.54461835,134.81,134.79,6.08458721]
[1744969346595,7.41729713,134.82,134.8,6.08458721]
[1744969347296,7.41729713,134.82,134.79,6.08458721]
[1744969347881,25.95887016,134.83,134.79,6.08458721]
[1744969350703,25.95887016,134.83,134.8,6.08458721]
[1744969352301,25.95887016,134.83,134.78,14.76]
[1744969352500,25.95887016,134.83,134.8,6.08458721]
[1744969356521,25.95887016,134.83,134.78,14.76]
[1744969357013,25.95887016,134.83,134.79,6.08458721]
[1744969357712,25.95887016,134.83,134.81,6.08458721]
[1744969358613,25.95887016,134.83,134.8,6.08458721]
[1744969366725,25.95887016,134.83,134.81,6.08458721]
[1744969369933,25.95887016,134.83,134.8,6.08458721]
[1744969374441,32.04345737,134.83,134.75,20.0]
[1744969374610,6.08458721,134.81,134.76,6.08458721]
[1744969374812,6.08458721,134.81,134.76,32.08458721]
[1744969375007,32.04345737,134.83,134.78,6.08458721]
[1744969375421,69.12719244,134.83,134.78,6.08458721]
[1744969375622,2.77273538,134.82,134.78,6.08458721]
[1744969376216,69.12719244,134.83,134.78,6.08458721]
[1744969376819,6.08458721,134.82,134.78,6.08458721]
[1744969377019,6.08458721,134.82,134.77,6.08458721]
[1744969378033,25.96439168,134.8,134.77,6.08458721]
[1744969379319,18.54599406,134.8,134.77,6.08458721]
[1744969379834,18.54599406,134.8,134.78,6.08458721]
[1744969380641,7.41784734,134.81,134.79,6.08458721]
[1744969380941,7.41784734,134.81,134.8,6.08458721]
[1744969381329,25.95986928,134.83,134.8,6.08458721]
[1744969381537,25.95986928,134.83,134.81,6.08458721]
[1744969385551,25.95986928,134.83,134.8,6.08458721]
[1744969402439,25.95986928,134.83,134.79,6.08458721]
[1744969402851,25.95986928,134.83,134.8,6.08458721]
[1744969404242,25.95986928,134.83,134.79,6.08458721]
[1744969405058,25.95986928,134.83,134.78,20.66458721]
[1744969406262,32.04445649,134.83,134.78,20.66458721]
[1744969411069,32.04445649,134.83,134.79,6.08458721]
[1744969411274,25.95986928,134.83,134.79,6.08458721]
[1744969413268,25.95986928,134.83,134.8,6.08458721]
[1744969413474,25.95986928,134.83,134.81,6.08458721]
[1744969414576,25.95986928,134.83,134.8,6.08458721]
[1744969414777,7.41674701,134.83,134.82,6.08458721]
[1744969416060,7.41674701,134.83,134.79,20.0]
[1744969416261,7.41674701,134.83,134.82,6.08458721]
[1744969417679,8.59742585,134.84,134.82,6.08458721]
[1744969417879,8.59742585,134.84,134.83,6.08458721]
[1744969419662,8.59742585,134.84,134.82,6.08458721]
[1744969434294,33.22250549,134.84,134.81,14.52]
[1744969435498,70.30349036,134.84,134.79,6.08458721]
[1744969435700,6.08458721,134.82,134.78,6.08458721]
[1744969436388,6.08458721,134.83,134.78,6.08458721]
[1744969436779,2.77074217,134.82,134.78,6.08458721]
[1744969437599,25.96246569,134.81,134.77,20.60458721]
[1744969437801,6.08458721,134.8,134.77,14.52]
[1744969438297,32.0470529,134.81,134.77,14.52]
[1744969438483,32.0470529,134.81,134.77,20.60458721]
[1744969438680,32.0470529,134.81,134.77,14.52]
[1744969439300,2.77000767,134.8,134.77,14.52]
[1744969439696,32.0470529,134.81,134.77,14.52]
[1744969440899,25.96246569,134.81,134.78,6.08458721]
[1744969441404,25.96246569,134.81,134.79,6.08458721]
[1744969441606,25.96246569,134.81,134.78,6.08458721]
[1744969442104,18.54461835,134.81,134.78,6.08458721]
[1744969443807,18.54461835,134.81,134.77,20.60458721]
[1744969445107,24.62920556,134.81,134.77,14.52]
[1744969445499,6.08458721,134.8,134.75,6.08458721]
[1744969445701,6.08458721,134.79,134.75,6.08458721]
[1744969446196,6.08458721,134.8,134.75,6.08458721]
[1744969446401,32.0470529,134.81,134.76,6.08458721]
[1744969447510,32.0470529,134.81,134.77,6.08458721]
[1744969447705,25.96246569,134.81,134.78,6.08458721]
[1744969449205,25.96246569,134.81,134.77,6.08458721]
[1744969450910,25.96246569,134.81,134.75,20.0]
[1744969451213,25.96246569,134.81,134.79,6.08458721]
[1744969452104,32.04320175,134.83,134.79,6.08458721]
[1744969453216,25.95861454,134.83,134.79,6.08458721]
[1744969455417,25.95861454,134.83,134.8,6.08458721]
[1744969456218,25.95861454,134.83,134.79,6.08458721]
[1744969456517,32.04320175,134.83,134.79,6.08458721]
[1744969458819,25.95861454,134.83,134.79,6.08458721]
[1744969462503,25.95861454,134.83,134.8,6.08458721]
[1744969462724,7.41674701,134.83,134.82,6.08458721]
[1744969463420,8.59754125,134.84,134.82,6.08458721]
[1744969463621,8.59754125,134.84,134.83,6.08458721]
[1744969464010,8.59754125,134.84,134.82,6.08458721]
[1744969464407,1.1810808,134.84,134.83,6.08458721]
[1744969464710,1.1810808,134.84,134.83,26.08458721]
[1744969464911,0.03,134.89,134.88,20.0]
[1744969465113,0.03,134.89,134.88,40.58458721]
[1744969470315,0.03,134.89,134.88,115.78810615]
[1744969472319,0.03,134.89,134.88,85.51855921]
[1744969472910,0.03,134.89,134.88,91.44975731]
[1744969473230,0.03,134.89,134.88,85.51855921]
[1744969473834,0.03,134.89,134.88,115.78810615]
[1744969474735,0.03,134.89,134.88,109.85690805]
[1744969475731,0.03,134.89,134.88,66.58458721]
[1744969479326,0.03,134.89,134.88,85.23423607]
[1744969480733,0.03,134.89,134.86,20.0]
[1744969480939,0.03,134.89,134.86,14.48]
[1744969481114,0.03,134.89,134.86,20.56458721]
[1744969481519,0.03,134.89,134.87,6.08458721]
[1744969481714,0.03,134.89,134.88,6.08458721]
[1744969483940,0.03,134.89,134.87,6.08458721]
[1744969484932,0.03,134.89,134.88,6.08458721]
[1744969486843,0.03,134.89,134.88,26.08458721]
[1744969488533,0.03,134.89,134.88,44.73423607]
[1744969495352,0.03,134.89,134.88,26.08458721]
[1744969498030,0.03,134.89,134.88,40.54458721]
[1744969498634,0.03,134.89,134.88,14.46]
[1744969499153,0.03,134.89,134.85,6.08458721]
[1744969499362,0.03,134.89,134.84,53.10964886]
[1744969499363,6.11458721,134.89,134.84,38.64964886]
[1744969499582,6.11458721,134.89,134.85,6.08458721]
[1744969499732,25.94899168,134.88,134.84,40.54458721]
[1744969500349,25.94899168,134.88,134.85,6.08458721]
[1744969500950,7.41399762,134.88,134.87,6.08458721]
[1744969501341,25.94899168,134.88,134.86,6.08458721]
[1744969502137,18.53499406,134.88,134.86,6.08458721]
[1744969507255,7.44344799,134.89,134.86,6.08458721]
[1744969507653,7.44344799,134.89,134.85,6.08458721]
[1744969508145,7.44344799,134.89,134.84,34.46]
[1744969508360,7.44344799,134.89,134.85,6.08458721]
[1744969509145,25.97706797,134.89,134.85,6.08458721]
[1744969509660,6.08458721,134.86,134.81,245.48]
[1744969509861,7.41619697,134.84,134.81,14.48]
[1744969510965,7.41619697,134.84,134.81,20.56458721]
[1744969511763,7.41619697,134.84,134.82,6.08458721]
[1744969511946,7.41454734,134.87,134.83,6.08458721]
[1744969512352,32.0355029,134.87,134.82,6.08458721]
[1744969513368,7.41564701,134.85,134.82,6.08458721]
[1744969514161,7.41564701,134.85,134.81,34.48]
[1744969514362,7.41564701,134.85,134.82,6.08458721]
[1744969516372,7.41564701,134.85,134.83,6.08458721]
[1744969517751,25.97706797,134.89,134.84,6.08458721]
[1744969517950,25.97706797,134.89,134.86,6.08458721]
[1744969518369,25.97706797,134.89,134.85,6.08458721]
[1744969518550,32.06165518,134.89,134.85,6.08458721]
[1744969518750,25.97706797,134.89,134.86,6.08458721]
[1744969518950,25.97706797,134.89,134.85,6.08458721]
[1744969521453,25.97706797,134.89,134.83,20.0]
[1744969521454,6.08458721,134.88,134.84,6.08458721]
[1744969521666,6.08458721,134.87,134.82,6.08458721]
[1744969523567,25.95283997,134.86,134.82,6.08458721]
[1744969525274,25.95283997,134.86,134.83,6.08458721]
[1744969526064,25.95283997,134.86,134.82,6.08458721]
[1744969526264,32.03742718,134.86,134.81,34.48]
[1744969526658,32.03742718,134.86,134.81,40.56458721]
[1744969526857,32.03742718,134.86,134.82,6.08458721]
[1744969529780,32.03742718,134.86,134.81,34.48]
[1744969529962,32.03742718,134.86,134.82,6.08458721]
[1744969530860,25.95283997,134.86,134.82,6.08458721]
[1744969531683,32.03742718,134.86,134.82,6.08458721]
[1744969532183,32.03742718,134.86,134.81,20.56458721]
[1744969533167,7.41509713,134.86,134.84,6.08458721]
[1744969533373,7.41509713,134.86,134.85,6.08458721]
[1744969535507,0.03,134.89,134.85,6.08458721]
[1744969536164,6.11458721,134.89,134.85,6.08458721]
[1744969536788,0.03,134.89,134.85,6.08458721]
[1744969536989,6.11458721,134.89,134.85,6.08458721]
[1744969537283,6.11458721,134.89,134.84,6.08458721]
[1744969537688,6.08458721,134.88,134.84,6.08458721]
[1744969538084,6.08458721,134.87,134.82,6.08458721]
[1744969538885,25.95283997,134.86,134.82,6.08458721]
[1744969539269,32.03742718,134.86,134.82,6.08458721]
[1744969540179,32.03742718,134.86,134.81,40.56458721]
[1744969544391,32.03742718,134.86,134.82,6.08458721]
[1744969545384,25.95283997,134.86,134.82,6.08458721]
[1744969549279,25.95283997,134.86,134.83,6.08458721]
[1744969549922,0.03,134.92,134.91,46.0]
[1744969550214,0.03,135.0,134.99,20.0]
[1744969550415,0.03,135.0,134.99,59.21423607]
[1744969550707,0.03,135.0,134.99,40.56458721]
[1744969550900,0.03,135.0,134.99,26.08458721]
[1744969551112,0.03,135.0,134.99,40.56458721]
[1744969551302,0.03,135.0,134.99,43.93184691]
[1744969551493,0.03,135.0,134.99,46.66764693]
[1744969552496,0.03,135.0,134.99,43.93184691]
[1744969554379,0.03,135.0,134.99,34.48]
[1744969554574,0.03,135.0,134.99,43.93184691]
[1744969554778,0.03,135.0,134.99,62.58149577]
[1744969555883,0.03,135.0,134.99,68.79218382]
[1744969556901,0.03,135.0,134.99,62.86581891]
[1744969557080,0.03,135.0,134.99,54.02786068]
[1744969557276,0.03,135.0,134.99,68.48786068]
[1744969557596,0.03,135.0,134.99,62.56149577]
[1744969558103,0.03,135.0,134.99,68.48786068]
[1744969561783,0.03,135.0,134.99,68.77218382]
[1744969562318,0.03,135.0,134.99,20.0]
[1744969562500,0.03,135.0,134.99,43.91184691]
[1744969562799,0.03,135.0,134.99,49.83821182]
[1744969563003,0.03,135.0,134.99,68.48786068]
[1744969565205,0.03,135.0,134.99,68.77218382]
[1744969566909,16.85431933,135.09,135.02,46.0]
[1744969567118,7.40247242,135.09,135.05,9.45184691]
[1744969567289,7.40247242,135.09,135.05,23.91184691]
[1744969567792,16.85431933,135.09,135.05,14.46]
[1744969568307,9.45184691,135.08,135.05,14.46]
[1744969568497,9.45184691,135.07,135.05,14.46]
[1744969568891,9.45184691,135.08,135.03,9.45184691]
[1744969569086,9.45184691,135.08,135.04,14.46]
[1744969569497,25.90865348,135.09,135.04,23.91184691]
[1744969569711,35.36050039,135.09,135.05,9.45184691]
[1744969570114,35.36050039,135.09,135.04,14.46]
[1744969570115,35.36050039,135.09,135.04,23.91184691]
[1744969571098,25.90865348,135.09,135.05,6.04371536]
[1744969571912,25.90865348,135.09,135.06,6.04371536]
[1744969572914,7.40247242,135.09,135.06,6.04371536]
[1744969573318,7.40201604,135.1,135.08,6.04371536]
[1744969573616,7.40201604,135.1,135.09,14.86]
[1744969574214,9.89830765,135.11,135.09,20.90371536]
[1744969574395,9.89830765,135.11,135.09,40.90371536]
[1744969575212,9.89830765,135.11,135.09,14.86]
[1744969575413,9.89830765,135.11,135.09,20.90371536]
[1744969576515,9.89830765,135.11,135.09,14.86]
[1744969578121,6.04371536,135.1,135.08,14.86]
[1744969578298,6.04371536,135.09,135.03,26.04371536]
[1744969578499,6.04371536,135.06,135.05,14.86]
[1744969578799,6.04371536,135.07,135.05,14.86]
[1744969579201,9.44719115,135.07,135.05,14.86]
[1744969579521,7.40411668,135.06,135.05,14.86]
[1744969579697,16.85130783,135.06,135.02,9.44719115]
[1744969579902,35.36159955,135.06,135.02,14.86]
[1744969580808,25.9144084,135.06,135.02,24.30719115]
[1744969581525,25.9144084,135.06,135.03,9.44719115]
[1744969582231,35.36159955,135.06,135.02,14.86]
[1744969582928,25.9144084,135.06,135.02,14.86]
[1744969583120,25.9144084,135.06,135.02,24.30719115]
[1744969583620,25.9144084,135.06,135.03,9.44719115]
[1744969583822,7.40411668,135.06,135.03,29.44719115]
[1744969585130,7.40356852,135.07,135.04,14.86]
[1744969585306,25.91248982,135.07,135.04,14.86]
[1744969586027,35.35968097,135.07,135.04,14.86]
[1744969587430,25.91248982,135.07,135.04,14.86]
[1744969589227,18.5089213,135.07,135.04,14.86]
[1744969590826,7.40302043,135.08,135.04,14.86]
[1744969591426,7.40302043,135.08,135.05,29.44719115]
[1744969591629,7.40302043,135.08,135.06,9.44719115]
[1744969591926,7.40302043,135.08,135.07,9.44719115]
[1744969592320,7.4019245,135.1,135.07,29.44719115]
[1744969594714,7.4019245,135.1,135.08,2.73145381]
[1744969595627,7.4019245,135.1,135.09,2.73145381]
[1744969596223,35.3539269,135.1,135.05,29.44719115]
[1744969596434,9.44719115,135.09,135.05,29.44719115]
[1744969597009,9.44719115,135.09,135.06,2.73133916]
[1744969597211,35.3539269,135.1,135.06,12.17853031]
[1744969597736,35.3539269,135.1,135.06,2.73133916]
[1744969597916,35.3539269,135.1,135.06,17.59133916]
[1744969598221,35.3539269,135.1,135.07,2.73133916]
[1744969598932,35.3539269,135.1,135.06,9.44719115]
[1744969599134,35.3539269,135.1,135.06,24.30719115]
[1744969600237,35.3539269,135.1,135.06,14.86]
[1744969600821,9.44719115,135.09,135.06,14.86]
[1744969601228,6.04469973,135.09,135.06,14.86]
[1744969602733,7.40302043,135.08,135.06,14.86]
[1744969610949,25.91057151,135.08,135.03,20.0]
[1744969611124,6.04469973,135.05,135.02,14.84]
[1744969611447,6.04469973,135.04,135.02,14.84]
[1744969611632,7.40576168,135.03,134.99,66.88469973]
[1744969611837,7.40576168,135.03,135.01,6.04469973]
[1744969612342,7.40576168,135.03,135.02,2.74151384]
[1744969613548,6.04469973,135.04,135.02,2.74151384]
[1744969613748,6.04469973,135.04,135.03,2.74151384]
[1744969614045,6.04469973,135.04,134.99,14.84]
[1744969614350,6.04469973,135.02,134.99,14.84]
[1744969614557,6.04469973,135.03,134.99,14.84]
[1744969615866,6.04469973,135.0,134.99,14.84]
[1744969616658,6.04469973,135.0,134.97,230.72]
[1744969617356,6.04469973,135.01,134.97,230.72]
[1744969617645,6.04469973,135.01,134.97,236.76469973]
[1744969617834,7.4074074,135.0,134.98,6.04469973]
[1744969618762,7.40576168,135.03,134.99,6.04469973]
[1744969618947,7.40576168,135.03,135.0,6.04469973]
[1744969619149,31.96486561,135.03,134.98,6.04469973]
[1744969619458,6.04469973,135.02,134.97,282.76469973]
[1744969619660,6.04469973,135.01,134.97,282.76469973]
[1744969620049,7.4074074,135.0,134.97,282.76469973]
[1744969620738,7.4074074,135.0,134.97,262.76469973]
[1744969622349,31.96870535,135.01,134.97,262.76469973]
[1744969624056,31.96870535,135.01,134.97,256.72]
[1744969625467,31.96870535,135.01,134.97,230.72]
[1744969626353,6.04469973,135.0,134.97,230.72]
[1744969627163,6.04469973,135.01,134.97,230.72]
[1744969628462,25.92592591,135.0,134.97,230.72]
[1744969628662,31.97062564,135.0,134.97,230.72]
[1744969628863,0.14491665,134.98,134.97,230.72]
[1744969629865,7.55342161,134.98,134.97,230.72]
[1744969630968,7.55342161,134.98,134.97,236.76469973]
[1744969632973,7.55342161,134.98,134.97,6.04469973]
[1744969633571,7.55342161,134.98,134.96,6.04469973]
[1744969636271,7.55342161,134.98,134.97,6.04469973]
[1744969636478,0.14491665,134.98,134.97,6.04469973]
[1744969636871,7.55342161,134.98,134.97,6.04469973]
[1744969637452,7.55342161,134.98,134.97,8.77469701]
[1744969637653,0.14491665,134.98,134.97,8.77469701]
[1744969640673,0.14491665,134.98,134.97,28.77469701]
[1744969641274,0.14491665,134.98,134.97,47.42434587]
[1744969645171,0.14491665,134.98,134.97,62.16434587]
[1744969646068,0.14491665,134.98,134.97,37.46999728]
[1744969646262,7.55342161,134.98,134.97,43.51469701]
[1744969646673,0.14491665,134.98,134.97,37.46999728]
[1744969646874,0.14491665,134.98,134.97,43.51469701]
[1744969647066,7.55342161,134.98,134.97,43.51469701]
[1744969648987,7.69329282,134.98,134.97,43.51469701]
[1744969650287,7.54837617,134.98,134.97,43.51469701]
[1744969650477,0.13987121,134.98,134.97,43.51469701]
[1744969651089,0.13987121,134.98,134.97,62.16434587]
[1744969651471,0.13987121,134.98,134.97,88.44866901]
[1744969652184,0.13987121,134.98,134.97,88.16434587]
[1744969659701,7.54837617,134.98,134.97,69.51469701]
[1744969659877,7.54837617,134.98,134.97,37.46999728]
[1744969660078,7.54837617,134.98,134.97,43.51469701]
[1744969664096,0.13987121,134.98,134.97,43.51469701]
[1744969664483,7.54837617,134.98,134.97,43.51469701]
[1744969668903,7.69442133,134.98,134.97,43.51469701]
[1744969670303,7.55455012,134.98,134.97,43.51469701]
[1744969677186,7.55455012,134.98,134.97,2.72999728]
[1744969678412,26.07581252,134.98,134.94,6.10769973]
[1744969678707,26.07581252,134.98,134.95,6.04469973]
[1744969679604,26.07581252,134.98,134.96,2.74985249]
[1744969680004,26.07581252,134.98,134.95,6.04469973]
[1744969681411,26.07581252,134.98,134.96,2.74912564]
[1744969681610,0.14604516,134.98,134.97,52.04469973]
[1744969682186,0.14604516,134.98,134.97,54.79382537]
[1744969683312,0.14604516,134.98,134.97,73.44347423]
[1744969683696,0.14356043,134.99,134.98,18.64964886]
[1744969683906,0.14356043,134.99,134.98,24.97867173]
[1744969684206,0.14356043,134.99,134.98,27.72779737]
[1744969685618,0.14356043,134.99,134.98,33.65460134]
[1744969688919,0.30237133,134.99,134.98,33.65460134]
[1744969689497,0.31470223,135.02,135.01,38.64964886]
[1744969689698,0.32003151,135.04,135.03,38.64964886]
[1744969690220,0.32003151,135.04,135.03,47.44347423]
[1744969690511,0.16086727,135.04,135.03,47.44347423]
[1744969695014,7.56608054,135.04,135.03,22.74912564]
[1744969695719,7.56608054,135.04,135.03,2.74912564]
[1744969696617,7.56608054,135.04,135.03,8.79382537]
[1744969698323,7.56608054,135.04,135.03,2.74912564]
[1744969698717,7.56608054,135.04,135.02,6.04469973]
[1744969701829,6.04469973,135.03,135.01,14.64]
[1744969702505,32.12381344,135.04,135.01,14.64]
[1744969703118,26.07911371,135.04,135.01,14.64]
[1744969703720,26.07911371,135.04,135.01,20.68469973]
[1744969704732,26.07911371,135.04,135.01,14.64]
[1744969708236,6.04469973,135.03,134.98,6.04469973]
[1744969708535,6.04469973,135.01,134.97,14.6]
[1744969708731,6.04469973,134.99,134.97,14.6]
[1744969708913,6.04469973,134.99,134.94,6.10769973]
[1744969708914,6.04469973,134.98,134.94,6.10769973]
[1744969709120,0.15747355,134.99,134.94,0.063]
[1744969709121,6.04469973,134.97,134.94,0.063]
[1744969709614,6.04469973,134.98,134.94,0.063]
[1744969710131,7.40905386,134.97,134.94,6.10769973]
[1744969710933,7.40905386,134.97,134.96,6.04469973]
[1744969711317,7.40905386,134.97,134.95,6.04469973]
[1744969711939,25.93168851,134.97,134.94,0.063]
[1744969712116,25.93168851,134.97,134.94,6.10769973]
[1744969713716,7.40905386,134.97,134.96,6.04469973]
[1744969714128,25.92976736,134.98,134.95,6.04469973]
[1744969714639,25.92976736,134.98,134.94,6.10769973]
[1744969715133,6.04469973,134.97,134.94,0.063]
[1744969716025,31.97446709,134.98,134.94,0.063]
[1744969716216,31.97446709,134.98,134.95,6.04469973]
[1744969716217,25.92976736,134.98,134.95,6.04469973]
[1744969716540,25.92976736,134.98,134.94,6.10769973]
[1744969716739,31.97446709,134.98,134.94,6.10769973]
[1744969716932,31.97446709,134.98,134.94,0.063]
[1744969717317,25.92976736,134.98,134.94,6.10769973]
[1744969719945,31.97446709,134.98,134.94,6.10769973]
[1744969723244,25.92976736,134.98,134.94,6.10769973]
[1744969723449,25.92976736,134.98,134.95,6.04469973]
[1744969723743,7.40850496,134.98,134.96,6.04469973]
[1744969728030,7.40850496,134.98,134.97,6.1868613]
[1744969729048,7.56088293,134.98,134.97,6.1868613]
[1744969731354,7.56088293,134.98,134.97,0.14216157]
[1744969733455,7.56088293,134.98,134.96,14.62]
[1744969733756,13.60558266,134.98,134.96,14.62]
[1744969733958,32.12684506,134.98,134.94,0.20516157]
[1744969736737,6.04469973,134.97,134.94,0.20516157]
[1744969737458,7.40960284,134.96,134.94,0.20516157]
[1744969738255,7.40960284,134.96,134.94,0.063]
[1744969738460,13.45430257,134.96,134.94,0.063]
[1744969738838,7.40960284,134.96,134.94,0.063]
[1744969739054,13.45430257,134.96,134.94,0.063]
[1744969739246,7.40960284,134.96,134.94,0.063]
[1744969741463,25.93168851,134.97,134.94,0.063]
[1744969746863,31.97638824,134.97,134.94,0.063]
[1744969749171,6.04469973,134.95,134.94,0.063]
[1744969749546,6.04469973,134.96,134.94,0.063]
[1744969750271,7.4101519,134.95,134.94,0.063]
[1744969753274,13.45430257,134.96,134.94,0.063]
[1744969754659,7.40960284,134.96,134.94,0.063]
[1744969754858,7.40960284,134.96,134.94,6.10769973]
[1744969755359,7.40960284,134.96,134.94,0.063]
[1744969757280,6.04469973,134.97,134.94,0.063]
[1744969759680,7.40960284,134.96,134.94,0.063]
[1744969760759,13.45430257,134.96,134.94,0.063]
[1744969763781,13.45430257,134.96,134.94,1e-08]
[1744969764085,6.04469973,134.95,134.94,1e-08]
[1744969764778,13.45430257,134.96,134.94,1e-08]
[1744969764980,6.04469973,134.95,134.94,1e-08]
[1744969765982,13.45485163,134.95,134.94,1e-08]
[1744969768876,7.4101519,134.95,134.94,1e-08]
[1744969770183,13.45485163,134.95,134.94,1e-08]
[1744969772969,7.4101519,134.95,134.94,1e-08]
[1744969774300,7.40960284,134.96,134.94,1e-08]
[1744969778704,25.93234034,134.97,134.94,1e-08]
[1744969779896,25.93234034,134.97,134.94,6.18686131]
[1744969780800,18.52328648,134.97,134.94,6.18686131]
[1744969781604,18.52328648,134.97,134.95,2.75222869]
[1744969782324,18.52328648,134.97,134.94,6.18686131]
[1744969782696,18.52328648,134.97,134.95,6.04469973]
[1744969783401,18.52328648,134.97,134.94,6.18686131]
[1744969784304,18.52328648,134.97,134.95,2.75376488]
[1744969785196,25.93234034,134.97,134.94,6.18686131]
[1744969786988,25.93234034,134.97,134.95,2.75264061]
[1744969787806,18.52328648,134.97,134.95,2.75264061]
[1744969788402,18.52328648,134.97,134.96,2.75264061]
[1744969797603,31.97254623,134.99,134.96,2.75264061]
[1744969798517,31.97254623,134.99,134.94,6.18686131]
[1744969798809,6.04469973,134.98,134.94,0.14216158]
[1744969799205,6.04469973,134.98,134.95,2.75353619]
[1744969799910,7.40905386,134.97,134.96,2.75353619]
[1744969800616,25.93168851,134.97,134.94,0.14216158]
[1744969801201,25.93168851,134.97,134.95,2.75333799]
[1744969802509,25.93168851,134.97,134.94,0.14216158]
[1744969803313,25.93168851,134.97,134.94,6.18686131]
[1744969804104,6.04469973,134.96,134.94,1e-08]
[1744969804311,13.45485163,134.95,134.94,1e-08]
[1744969804508,32.38882363,134.95,134.94,1e-08]
[1744969807732,50.9142034,134.95,134.91,1e-08]
[1744969807897,6.04469973,134.92,134.9,1e-08]
[1744969808104,44.86950367,134.95,134.9,1e-08]
[1744969808105,6.04469973,134.91,134.9,1e-08]
[1744969808522,13.4570487,134.91,134.9,1e-08]
[1744969809417,13.4570487,134.91,134.89,1e-08]
[1744969809621,6.04469973,134.9,134.89,1e-08]
[1744969810001,18.52874349,134.93,134.89,1e-08]
[1744969810002,18.933972,134.92,134.89,1e-08]
[1744969810319,6.04469973,134.91,134.89,1e-08]
[1744969811122,18.52874349,134.93,134.89,6.04469974]
[1744969811299,24.57344322,134.93,134.89,6.04469974]
[1744969811499,24.57344322,134.93,134.89,1e-08]
[1744969811706,6.04469973,134.92,134.89,1e-08]
[1744969812821,7.41234897,134.91,134.89,1e-08]
[1744969820428,13.4570487,134.91,134.89,1e-08]
[1744969821313,7.41234897,134.91,134.89,1e-08]
[1744969826335,25.94129854,134.92,134.89,1e-08]
[1744969827429,31.98599827,134.92,134.89,1e-08]
[1744969832242,6.04469973,134.91,134.89,1e-08]
[1744969833738,6.04469973,134.91,134.88,1e-08]
[1744969833924,6.04469973,134.9,134.88,1e-08]
[1744969834624,6.04469973,134.91,134.88,1e-08]